Cogmind - Beta 16 --- EXPLORER MODE // 2025.12.04 @ 07:27:43 Player: K.K.Y. Result: Destroyed by KG-KD5(R) with Subdweller Laser Performance ------------- Evolutions (0) 0 Regions Visited (3) 600 Robots Destroyed (36) 180 Value Destroyed (630) 630 Prototype IDs (12) 240 Alien Tech Used (0) 0 Bonus (0) 0 TOTAL SCORE: 1650 Bonus ------- None Cogmind --------- Core Integrity 0/250 Matter 300/300 Energy 100/100 System Corruption 0% Temperature Cool (6) Movement Treading (160) Location -10/Subcaves Parts ------- > --- POWER (1) -------- Subdweller Power Source > --- PROPULSION (2) --- Spiked Treads > --- UTILITY (3) ------ Terrain Scan Processor Terrain Scan Processor > --- WEAPON (2) ------- (None) > --- INVENTORY (5) ---- Huge Storage Unit Structural Scanner Machine Analyzer Improved Terrain Scanner Peak State ------------ > --- POWER ------------ Deuterium Engine > --- PROPULSION ------- Light Treads Light Treads > --- UTILITY ---------- Improved Terrain Scanner Terrain Scan Processor Terrain Scan Processor > --- WEAPON ----------- Beam Cannon Ion Cannon > --- INVENTORY -------- Huge Storage Unit Structural Scanner Machine Analyzer Improved Terrain Scanner Mining Laser [Rating: 16] Favorites ----------- Power Deuterium Engine Engine Deuterium Engine Propulsion Light Treads Treads Light Treads Utility Terrain Scan Processor Device Improved Terrain Scanner Processor Terrain Scan Processor Weapon Beam Cannon Energy Cannon Beam Cannon Ballistic Gun Assault Rifle Special Weapon Mining Laser Build | -11 -10 -10 -10 ------- Run | Yrd Mat Min Sub Slots Evolved 1 | . 1 . . Power . | . . . . Propulsion . | . . . . Utility 1 | . 1 . . Weapon . | . . . . Parts Attached 17 | 5 5 3 4 Power 3 | 1 . 1 1 Engine 3 | 1 . 1 1 Core . | . . . . Reactor . | . . . . Propulsion 5 | 2 . 1 2 Treads 5 | 2 . 1 2 Leg . | . . . . Wheel . | . . . . Hover . | . . . . Flight . | . . . . Utility 3 | . 3 . . Device 1 | . 1 . . Storage . | . . . . Processor 2 | . 2 . . Hackware . | . . . . Protection . | . . . . Artifact . | . . . . Weapon 6 | 2 2 1 1 Energy Gun . | . . . . Energy Cannon 3 | . 2 1 . Ballistic Gun 2 | 2 . . . Ballistic Cannon . | . . . . Launcher . | . . . . Special Weapon 1 | . . . 1 Impact Weapon . | . . . . Slashing Weapon . | . . . . Piercing Weapon . | . . . . Special Melee Weapon . | . . . . Unidentified Prototypes . | . . . . Parts Lost 7 | . . . 7 Power 1 | . . . 1 Propulsion 2 | . . . 2 Utility 1 | . . . 1 Weapon 3 | . . . 3 Highest Loss Streak 4 | . . . 4 To Critical Strikes . | . . . . Average Backups 4 | . 4 5 4 Power . | . . . . Propulsion . | . . . . Utility 3 | . 3 4 4 Weapon . | . 1 1 . Tool/Special . | . . . . Unused Backups 4 | . . . 4 Power . | . . . . Propulsion . | . . . . Utility 4 | . . . 4 Weapon . | . . . . Tool/Special . | . . . . Average Slot Usage (%) 88 | . 82 100 83 Engine 9 | . 12 12 6 Treads 22 | . 25 25 19 Device 11 | . 9 12 11 Processor 21 | . 9 25 25 Energy Cannon 18 | . 11 25 17 Ballistic Gun 3 | . 13 . . Peak Build Rating 16 | 5 12 16 16 Average Rating 12 | 4 9 15 12 On Entrance 8 | . 5 12 16 Avg Prop Armor Cover (%) . | . . . . Naked Turns . | . . . . Heaviest Build 19 | 9 12 19 19 Greatest Support 40 | 40 40 40 40 Greatest Overweight (x) . | . . . . Average Overweight (x) . | . . . . Largest Inventory Capacity 5 | 5 5 5 5 Average Capacity 5 | 5 5 5 5 Most Carried 5 | 5 5 5 5 Average Carried 4 | 1 4 5 4 Final Capacity 5 | 5 5 5 5 Final Carried 5 | 3 5 5 4 Class Distribution -------------------- 95% | Hacker-Mutant 4% | Scavenger-Mutant Dominant Class ---------------- Hacker-Mutant | -10/Materials Hacker-Mutant | -10/Mines Hacker-Mutant | -10/Subcaves Resources | -11 -10 -10 -10 ----------- Run | Yrd Mat Min Sub Matter Collected 636 | 228 348 40 20 Remotely . | . . . . Salvage Created 1030 | 197 421 64 348 Parts 81 | 11 35 8 27 Haulers Intercepted 2 | . 2 . . Recyclers Shooed . | . . . . Parts Field Recycled . | . . . . Retrieved Matter . | . . . . Parts Self-Destructed . | . . . . Prevented . | . . . . Parts Restored . | . . . . Kills | -11 -10 -10 -10 ------- Run | Yrd Mat Min Sub Combat Hostiles Destroyed 18 | . 5 4 9 Guns 5 | . 5 . . Cannons 13 | . . 4 9 Classes Destroyed 9 | 2 6 . 1 Builder 6 | . 6 . . Tunneler 5 | 5 . . . Hauler 2 | . 2 . . Recycler 1 | 1 . . . Mechanic 1 | . 1 . . Watcher 3 | . 3 . . Swarmer 8 | . 4 4 . Grunt 1 | . 1 . . Subdweller 9 | . . . 9 Best Kill Streak 6 | 6 3 2 2 Combat Bots Only 3 | . 3 2 2 Max Kills in Single Turn 1 | 1 1 1 1 Gunslinging . | . . . . Exploded . | . . . . Melee . | . . . . Uniques/NPCs Destroyed . | . . . . Combat | -11 -10 -10 -10 -------- Run | Yrd Mat Min Sub Hostile Shots Fired 90 | . 14 4 72 Missed 24 | . 6 1 17 Hits 66 | . 8 3 55 Projectile 66 | . 8 3 55 AOE 5 | . . . 5 Critical Strikes 3 | . . . 3 Damage Taken 1038 | . 116 14 908 Core 262 | . 33 6 223 Absorbed by Shields . | . . . . Ignored by Resistances 591 | . 73 10 508 Core Remaining (%) 100 | 100 . . . Volleys Fired 116 | 13 37 4 62 Largest 2 | 2 2 2 2 Hottest 160 | 40 120 120 160 Shots Fired 211 | 26 74 8 103 Gun 92 | 26 66 . . Cannon 114 | . 8 8 98 Launcher . | . . . . Special 5 | . . . 5 Kinetic 92 | 26 66 . . Thermal 119 | . 8 8 103 Explosive . | . . . . Electromagnetic . | . . . . Robot Hit Streak 39 | 7 17 22 39 Robot Miss Streak 2 | 2 2 . 2 Penetration Max . | . . . . Secondary Targets . | . . . . Shots Hit Robots 149 | 19 58 5 67 Core Hits 49 | 7 21 4 17 Critical Kills . | . . . . Critical Parts Destroyed . | . . . . Critical Strikes . | . . . . Melee Attacks . | . . . . Impact . | . . . . Slashing . | . . . . Piercing . | . . . . Sneak Attacks . | . . . . Combat Hostiles . | . . . . Follow-up Attacks . | . . . . Damage Inflicted 2398 | 256 743 93 1306 Guns 895 | 256 639 . . Cannons 1455 | . 104 93 1258 Explosions . | . . . . Melee . | . . . . Ramming . | . . . . Kinetic 895 | 256 639 . . Thermal 1503 | . 104 93 1306 Explosive . | . . . . Electromagnetic . | . . . . Impact . | . . . . Slashing . | . . . . Piercing . | . . . . Highest Corruption . | . . . . Average Corruption . | . . . . Corruption Purged . | . . . . Corruption Blocked . | . . . . Overload Shots . | . . . . Overflow Damage 7 | . 5 . 2 Projectiles 7 | . 5 . 2 Explosions . | . . . . Melee . | . . . . Knockbacks . | . . . . Impact . | . . . . Kinetic . | . . . . Secondary . | . . . . Self-Inflicted Damage 34 | . 34 . . Shots 1 | . 1 . . Rammed 1 | . . . 1 Targets Rammed 1 | . . . 1 Kicked . | . . . . Crushed . | . . . . Highest Temperature 180 | . 180 126 152 Average Temperature 37 | . 77 63 23 Received Heat Transfer 393 | . 18 . 375 Siege Activations . | . . . . Martial Activations . | . . . . Shielding Activations . | . . . . Robots Disrupted . | . . . . Combat Hostiles . | . . . . Robots Corrupted . | . . . . Combat Hostiles . | . . . . Parts Fried . | . . . . Impact Corruptions . | . . . . Robots Melted . | . . . . Combat Hostiles . | . . . . Parts Melted 6 | . 1 . 5 Heat Transferred 2949 | . 222 185 2542 Parts Sabotaged . | . . . . Parts Stolen . | . . . . Parts Stripped . | . . . . Power Chain Reactions . | . . . . Alert | -11 -10 -10 -10 ------- Run | Yrd Mat Min Sub Maximum Alert Level . | . . . . Low Security (%) 100 | 100 100 100 . Level 1 . | . . . . Level 2 . | . . . . Level 3 . | . . . . Level 4 . | . . . . Level 5 . | . . . . High Security . | . . . . Max Security . | . . . . Peak Influence 55 | 15 55 54 . Initial . | . . . . Average 4 | 1 6 2 . Influence Increases 335 | 30 201 104 . Destroy 0b10 Robot/C 180 | . 100 80 . Destroy 0b10 Robot/NC 90 | 30 60 . . Destroy Leader 50 | . 30 20 . Disable Machine 8 | . 4 4 . Destroy Structure 7 | . 7 . . Influence Decreases 335 | 30 201 104 . Time Decay 335 | 30 201 104 . Squads Dispatched . | . . . . Investigation . | . . . . Extermination . | . . . . Reinforcement . | . . . . Assault . | . . . . Garrison . | . . . . Intercept . | . . . . Searches Triggered . | . . . . Construction Impeded . | . . . . Haulers Reinforced . | . . . . Active Scanning Responses . | . . . . Cargo Convoy Interrupts . | . . . . Stealth | -11 -10 -10 -10 --------- Run | Yrd Mat Min Sub Distress Signals . | . . . . Communications Jammed . | . . . . Distress Signals . | . . . . Times Spotted 27 | . 12 3 12 Peak Tracking Total 3 | . 3 2 3 Tactical Retreats 1 | . . . 1 Traps | -11 -10 -10 -10 ------- Run | Yrd Mat Min Sub Traps Triggered 3 | . 1 1 1 Indirectly . | . . . . Trap Hack Attempts . | . . . . Triggered . | . . . . Disarmed . | . . . . Reprogrammed . | . . . . Reused . | . . . . Traps Extracted . | . . . . Installed . | . . . . Triggered . | . . . . Machines | -11 -10 -10 -10 ---------- Run | Yrd Mat Min Sub Machines Disabled 3 | . 1 1 1 Max in Single Turn 1 | . 1 1 1 Machines Repaired . | . . . . Machines Dismantled . | . . . . Machines Sabotaged . | . . . . Overloaded Fab Kills . | . . . . Hacking | -11 -10 -10 -10 --------- Run | Yrd Mat Min Sub Machines Accessed 2 | . . 1 1 Terminals . | . . . . Fabricators . | . . . . Repair Stations . | . . . . Recycling Units . | . . . . Scanalyzers . | . . . . Garrison Access . | . . . . Total Hacks 2 | . . 1 1 Successful 2 | . . 1 1 Failed . | . . . . Catastrophic . | . . . . Database Lockouts . | . . . . Manual . | . . . . Terminals . | . . . . Fabricators . | . . . . Repair Stations . | . . . . Recycling Units . | . . . . Scanalyzers . | . . . . Garrison Access . | . . . . Terminal Hacks 2 | . . 1 1 Open Door 1 | . . 1 . Proto ID Catalog 1 | . . . 1 Fabricator Hacks . | . . . . Repair Station Hacks . | . . . . Recycling Unit Hacks . | . . . . Scanalyzer . | . . . . Garrison Access Hacks . | . . . . Unauthorized Hacks . | . . . . Terminals . | . . . . Fabricators . | . . . . Repair Stations . | . . . . Recycling Units . | . . . . Scanalyzers . | . . . . Garrison Access . | . . . . Data Cores Recovered . | . . . . Used . | . . . . Hacking Detections . | . . . . Full Trace Events . | . . . . Feedback Events . | . . . . Feedback Blocked . | . . . . Robot Schematics Acquired . | . . . . Robots Built . | . . . . Authchips . | . . . . Time . | . . . . Total Robot Build Rating . | . . . . Part Schematics Acquired . | . . . . Parts Built . | . . . . Authchips . | . . . . Time . | . . . . Total Part Build Rating . | . . . . Part Studies Acquired . | . . . . Parts Repaired . | . . . . Time . | . . . . Parts Recycled . | . . . . Recycled Matter . | . . . . Retrieved Matter . | . . . . Retrieved Components . | . . . . Parts Scanalyzed . | . . . . Part Schematics Acquired . | . . . . Parts Damaged . | . . . . Bothacking | -11 -10 -10 -10 ------------ Run | Yrd Mat Min Sub Used RIF Installer . | . . . . Robots Hacked . | . . . . Non-combat . | . . . . Combat . | . . . . Robot Hacks Applied . | . . . . Relay Couplers Released . | . . . . Fabnet Peak Effective % . | . . . . Robots Rewired . | . . . . Allies Hacked . | . . . . Hacks Repelled . | . . . . Allies | -11 -10 -10 -10 -------- Run | Yrd Mat Min Sub Total Allies . | . . . . Largest Group . | . . . . Highest-Rated Group . | . . . . Highest-Rated Ally . | . . . . Total Orders . | . . . . Ally Attacks . | . . . . Total Damage . | . . . . Kills . | . . . . Allies Corrupted . | . . . . Allies Melted . | . . . . Intel | -11 -10 -10 -10 ------- Run | Yrd Mat Min Sub Active Infowar (turns) 3332 | . 718 1214 1400 Terrain 3332 | . 718 1214 1400 Robot Analysis Total . | . . . . Derelict Logs Recovered . | . . . . Drone Launches . | . . . . Drone Recoveries . | . . . . Exploration | -11 -10 -10 -10 ------------- Run | Yrd Mat Min Sub Turns Passed 3683 | 140 878 1214 1451 Spaces Moved 1821 | 68 466 636 651 Core 18 | 18 . . . Treads 1803 | 50 466 636 651 Legs . | . . . . Wheels . | . . . . Hover . | . . . . Flight . | . . . . Fastest Speed 50 | 50 160 160 160 Average Speed 158 | 130 160 160 160 Slowest Speed 160 | 160 160 160 160 Overloaded Moves . | . . . . Propulsion Burnouts . | . . . . Robots Hopped . | . . . . Potential Cave-ins . | . . . . Cave-ins Triggered . | . . . . Exploration Rate (%) 53 | 4 71 97 41 Regions Visited 3 Branch Regions 2 Pre-discovered Areas . | . . . . Known Exits Taken 3 | 1 1 1 . Unknown Exits Taken . | . . . . Scrap Searched 3 | . . 1 2 Spaces Dug . | . . . . Terrain Destroyed 7 | . 7 . . Melee . | . . . . Projectile . | . . . . AOE 7 | . 7 . . Terrain Rammed . | . . . . Walls Destroyed . | . . . . Machines Disabled . | . . . . Actions | -11 -10 -10 -10 --------- Run | Yrd Mat Min Sub Total 2388 | 93 524 826 945 Wait 417 | . 12 180 225 Move 1818 | 67 465 635 651 Hop . | . . . . Pick Up 12 | 8 3 . 1 Fast Attach 6 | . 4 1 1 Attach 8 | 5 1 . 2 Detach . | . . . . Swap 4 | . . 3 1 Drop 6 | . 2 3 1 Fire 116 | 13 37 4 62 Melee . | . . . . Ram . | . . . . Kick . | . . . . Crush 1 | . . . 1 Escape Stasis . | . . . . Rewire . | . . . . Trap . | . . . . Miscellaneous . | . . . . Route ------- -11/Scrapyard -10/Materials (discovered 3 exits: *Mat x2 / *Min) -10/Mines (discovered 3 exits: *Mat x2 / *Sub) -10/Subcaves (discovered 2 exits: *Mat x2) History --------- Turn | Location | Event 4 | -11/Scrapyard | Identified exit to Materials 4 | -11/Scrapyard | Discovered exit to Materials (range 15) 141 | -11/Scrapyard | Entered Materials 141 | -10/Materials | Evolved 1 slot: Utility x1 322 | -10/Materials | Build established: Hacker-Mutant 465 | -10/Materials | Identified exit to Materials 465 | -10/Materials | Discovered exit to Materials (range 7) 739 | -10/Materials | Discovered exit to Materials (range 4) 853 | -10/Materials | Identified exit to Mines 853 | -10/Materials | Discovered exit to Mines (range 16) 1019 | -10/Materials | Entered Mines 1039 | -10/Mines | Discovered exit to Materials (range 10) 1084 | -10/Mines | Met a Derelict who couldn't figure out how to use a Trap Extractor 1235 | -10/Mines | Discovered exit to Materials (range 14) 1545 | -10/Mines | Identified exit to Subcaves 1545 | -10/Mines | Discovered exit to Subcaves (range 8) 1861 | -10/Mines | YI-UF0 nonchalantly dropped a Grenade Launcher on the ground 2233 | -10/Mines | Entered Subcaves 2234 | -10/Subcaves | Approached by a straggling Scientist 2472 | -10/Subcaves | Identified exit to Materials 2472 | -10/Subcaves | Discovered exit to Materials (range 7) 2759 | -10/Subcaves | Visited 4L-MR0's lab 2831 | -10/Subcaves | Core integrity fell below 50% 3493 | -10/Subcaves | Discovered exit to Materials (range 13) 3652 | -10/Subcaves | Core integrity fell below 20% 3684 | -10/Subcaves | Destroyed by KG-KD5(R) with Subdweller Laser Last Messages --------------- 03105_ Searching scrap... 03105_ Found Sub. Beam Cannon. 03105_ Found 33 Matter. 03107_ Searching scrap... 03107_ Found Spk. Treads. 03107_ Found 54 Matter. 03110_ Acquired Spk. Treads. 03111_ Acquired 10 matter. 03355_ 19-RE1(u) builds Twisted Machinery. 03358_ 19-RE1(u) tweaks Twisted Machinery. 03446_ Acquired Sub. Power Source. 03493_ EXIT=FOUND: MATERIALS 03615_ Sub. Power Source shoots sparks and powers down. 03617_ Lgt. Treads destroyed. 03618_ XM-7GJ(R) destroyed. 03633_ Imp. Terrain Scanner destroyed. 03639_ Mining Laser destroyed. 03657_ Beam Cannon destroyed. 03657_ Slammed into KG-KD5(R). Map ----- +----------------------------------------------------+ | ?????????????????????????????????????????????????? | | ?????????????????????????????????????????????????? | | ?????????????????????????????????????????????????? | | ?????????????????????????????????????????????????? | | ?????????????????????????????????????????????????? | | ?????????????????????????????????????????????????? | | ?????????????????????????????????????????????????? | | ?????????????????????????????????????????????????? | | ?????????????????????????????????????????????????? | | ?????????????????????????????????????????????????? | | ?????????????????????????????????????????????????? | | ?????????????????????????????????????????????????? | | ?????????????????????????????????????????????????? | | ?????????????????????????????????????????????????? | | ?#???????????????????????????????????????????????? | | ?????????????????????????????????????????????????? | | ?????????????????????????????????????????????????? | | ?????????????????????????????????????????????????? | | ??#??????????????#####???????????????????????????? | | #???#???????????## """###?###??#?#???????????????? | | #?#?????????????# " ## ##???#????? ?????????? | | #??#?#???????????? ##?#??? ????????????? | | ####?????#??"???"??# #??#?#??????????????? | | ###???#???????????## #???#???####????????? | | ?? ?? ?"????#?# ####???# ##????????? | | ?? ? ? ?????" ??# @ ##"#### ##"?""???? | | ? ?? ? ""?"???### #### """""??? | | ????#??? """???# """ #"#"""" "? ??? | | ?##?? ? ?? "#### #### """"""" """???? | | ##### ??### ??# ###?## R" """""" ? ? | | ?##?# ### #### ####?## # # "" ???#?? | | ###### ? ##### ######## #???" ? ###? | | ##?##?? ???# """" #####?##?### ###"???? "??? | | #?######?### ##""#? ?####?###### ##???? "??? | | #####??####" ####""##### #### #%* ##? ? ?"?"# | | ###?#####"""""###"""#??## %=!## ?# ?""? | | ###?##??# """## ##### # ######"????""? | | #?#####?# ### ######?# "??? ? | | ### ### ## ###?##??? "## "" | | #?#### #### ####?#?? ""?"" | | ###### ####### ####?##"?? ??# | | ## ######## #?##???"""## | | ### ######?# #####? "? #? | | ### # ## ###??## ##### "###?# " #?# | | ###### ### ###?### ##?### ""###??????## | | ##??## ## #? ? #### #?#### " # ? "#### | | ### ## ##?# ############# " ### ????#? | | ## < #?#####?######??### ########?#### | | ?# ##??###?####?##?# ##?##?#??#### | | ?## ### ###############?####?#### #?#?###??#?? | +----------------------------------------------------+ Best States ------------- Heat Dissipation 25 Energy Generation 15 Energy Capacity 275 Matter Stores 300 Matter Capacity 300 Sight Range 16 Terrain Scan Range 16 Terrain Scan Density 160 Resistance: KI 35 Resistance: TH 35 Resistance: EX 35 Resistance: EM 35 Resistance: I 35 Resistance: S 35 Resistance: P 35 Evasion (%) 50 Recoil Reduction 2 Offensive Hacking 20 Item Schematics ----------------- None Robot Schematics ------------------ None Fabricated ------------ Nothing Repaired ---------- Nothing Studied --------- None Alien Tech Used ----------------- None Achievements -------------- None Challenges ------------ None Game ------ Seed LightningHypervelocityDriver Manual? 0 Play Time 00:14:38 Cumulative 163.3 hours Start 2025.12.04 @ 07:13:45 End 2025.12.04 @ 07:27:43 Sessions 1 Manual Loads 0 Difficulty Explorer Special Mode None Game No. 216 Rogue 0 Adventurer 0 Explorer 216 Win Type - Total 0 Types 0/0/0/0/0/0/0/0/0/0 Lore% 70 Gallery% 66 Achievement% 52 Wizard Run 0 Options --------- Layout 1 ASCII 0 Keyboard 0 Movement Mouse Keybinds 0 Fullscreen 1 Font 24/Smallcaps Map View 50x35 Zoom Use 0% Tactical HUD 1 Map Filters NONE Filters NONE Steam 1 RUN: 593a46f7-83fa-4e64-ab14-319e8831ae1e